bitfinex/quotes_SOLUSD_20230905
["timestamp","ask_amount","ask_price","bid_price","bid_amount"]
[1693874602454,8.047,19.385,19.38,33.724]
[1693874609065,8.047,19.386,19.38,33.724]
[1693874613969,111.73,19.39,19.38,33.724]
[1693874614173,8.046,19.387,19.38,33.724]
[1693874622981,8.046,19.387,19.38,7.244]
[1693874623187,8.046,19.387,19.378,7.245]
[1693874623188,55.49999999,19.386,19.378,7.245]
[1693874623380,55.49999999,19.386,19.376,15.56317688]
[1693874623381,8.048,19.384,19.377,7.245]
[1693874628465,8.048,19.384,19.376,15.56317688]
[1693874628671,55.0,19.383,19.376,22.80817688]
[1693874628874,8.049,19.382,19.376,22.80817688]
[1693874629078,55.0,19.381,19.376,22.80817688]
[1693874629682,55.0,19.382,19.376,22.80817688]
[1693874630177,83.211,19.39,19.376,22.80817688]
[1693874630369,20.49999999,19.388,19.376,22.80817688]
[1693874630773,8.047,19.386,19.376,22.80817688]
[1693874630969,0.49999999,19.385,19.376,22.80817688]
[1693874631170,8.54699999,19.385,19.376,22.80817688]
[1693874631384,8.047,19.385,19.376,22.80817688]
[1693874647191,8.047,19.385,19.376,15.56317688]
[1693874647400,55.49999999,19.384,19.376,15.56317688]
[1693874647689,8.048,19.382,19.376,15.56317688]
[1693874651498,8.049,19.38,19.374,7.246]
[1693874651792,55.0,19.379,19.374,7.246]
[1693874652098,63.049,19.381,19.374,7.246]
[1693874659995,63.049,19.381,19.373,7.247]
[1693874660206,63.049,19.381,19.371,7.247]
[1693874663186,63.049,19.381,19.366,15.47832817]
[1693874663503,63.049,19.381,19.37,7.248]
[1693874667295,154.0491,19.381,19.37,7.248]
[1693874669508,8.05,19.379,19.37,7.248]
[1693874669814,55.0,19.378,19.37,7.248]
[1693874669994,63.05,19.378,19.37,7.248]
[1693874674105,55.0,19.378,19.37,7.248]
[1693874677899,8.05,19.378,19.37,7.248]
[1693874678201,55.0,19.377,19.37,7.248]
[1693874679711,55.0,19.378,19.37,7.248]
[1693874682310,99.0491,19.381,19.37,7.248]
[1693874682613,91.0001,19.381,19.37,7.248]
[1693874683412,99.0491,19.381,19.37,7.248]
[1693874694225,8.048,19.383,19.37,33.728]
[1693874698009,8.048,19.383,19.367,20.0]
[1693874698010,34.058,19.379,19.367,7.249]
[1693874698223,8.051,19.375,19.364,23.424]
[1693874698425,55.0,19.374,19.367,7.249]
[1693874698620,8.052,19.372,19.367,7.249]
[1693874700422,8.052,19.372,19.366,7.249]
[1693874701833,55.0,19.371,19.366,7.249]
[1693874702018,8.053,19.37,19.366,7.249]
[1693874702716,8.053,19.37,19.365,7.25]
[1693874707129,8.053,19.371,19.365,7.25]
[1693874707631,8.052,19.372,19.365,7.25]
[1693874724534,99.4869,19.378,19.365,81.796]
[1693874724844,250.0,19.389,19.365,81.796]
[1693874724845,8.049,19.379,19.365,81.796]
[1693874725030,8.049,19.379,19.369,7.248]
[1693874725230,8.051,19.376,19.369,7.248]
[1693874729147,8.051,19.377,19.369,7.248]
[1693874743461,8.051,19.377,19.368,7.248]
[1693874743668,8.051,19.377,19.367,7.249]
[1693874764870,8.051,19.377,19.365,40.4047496]
[1693874765181,8.051,19.377,19.367,7.249]
[1693874773576,55.0,19.376,19.367,7.249]
[1693874773880,8.052,19.374,19.367,7.249]
[1693874777573,8.052,19.374,19.366,7.249]
[1693874782689,8.052,19.374,19.363,15.45069694]
[1693874782880,8.052,19.374,19.361,51.132]
[1693874782881,55.0,19.373,19.364,7.25]
[1693874783081,8.053,19.371,19.364,7.25]
[1693874786786,8.053,19.371,19.35,77.64]
[1693874786993,90.881,19.366,19.356,7.253]
[1693874787191,34.08,19.366,19.357,20.0]
[1693874787685,34.08,19.366,19.358,7.252]
[1693874787889,34.08,19.366,19.359,27.252]
[1693874788079,34.08,19.366,19.359,26.252]
[1693874788278,0.99999999,19.365,19.353,7.254]
[1693874788481,8.057,19.361,19.354,7.253]
[1693874789496,8.057,19.361,19.347,40.87558078]
[1693874789801,55.0,19.36,19.351,7.255]
[1693874790104,8.056,19.363,19.351,30.695]
[1693874790281,8.057,19.362,19.351,30.695]
[1693874790684,8.056,19.363,19.351,30.695]
[1693874790883,8.056,19.363,19.355,30.688]
[1693874791782,0.99999999,19.362,19.355,30.688]
[1693874792695,8.057,19.362,19.355,30.688]
[1693874793892,8.057,19.362,19.355,7.253]
[1693874799712,0.99999999,19.361,19.354,7.254]
[1693874800005,8.058,19.359,19.354,7.254]
[1693874800387,8.057,19.36,19.354,7.254]
[1693874800897,8.057,19.361,19.354,7.254]
[1693874801396,8.057,19.362,19.354,7.254]
[1693874803906,0.99999999,19.361,19.354,7.254]
[1693874804208,8.058,19.359,19.354,7.254]
[1693874812510,8.058,19.359,19.353,7.254]
[1693874815798,8.058,19.359,19.352,7.254]
[1693874816621,8.058,19.359,19.351,7.255]
[1693874816804,8.058,19.359,19.352,7.254]
[1693874822018,82.833,19.364,19.352,7.254]
[1693874822218,0.99999999,19.363,19.352,7.254]
[1693874822522,9.05599999,19.363,19.352,7.254]
[1693874822715,8.056,19.363,19.352,7.254]
[1693874823618,0.99999999,19.362,19.352,7.254]
[1693874823818,8.057,19.361,19.352,7.254]
[1693874825624,8.057,19.362,19.352,7.254]
[1693874827208,8.056,19.364,19.352,7.254]
[1693874827413,0.99999999,19.363,19.352,7.254]
[1693874827614,8.057,19.362,19.352,7.254]
[1693874837227,0.99999999,19.361,19.352,7.254]
[1693874837427,9.05699999,19.361,19.352,7.254]
[1693874837627,8.057,19.361,19.352,7.254]
[1693874850443,0.99999999,19.36,19.352,7.254]
[1693874850643,8.058,19.359,19.352,7.254]
[1693874854148,75.0,19.358,19.347,7.256]
[1693874854341,34.1,19.355,19.344,23.448]
[1693874855340,34.1,19.355,19.342,74.633]
[1693874856135,34.1,19.355,19.342,90.37098448]
[1693874856750,34.1,19.355,19.345,7.257]
[1693874856939,55.0,19.354,19.344,7.258]
[1693874857249,8.061,19.351,19.344,7.258]
[1693874858855,8.062,19.349,19.344,7.258]
[1693874859743,8.062,19.349,19.343,7.258]
[1693874861250,82.878,19.354,19.343,30.708]
[1693874861451,55.0,19.353,19.343,30.708]
[1693874862247,8.061,19.351,19.343,30.708]
[1693874868364,8.061,19.351,19.343,7.258]
[1693874869655,8.061,19.351,19.342,7.258]
[1693874869859,55.0,19.35,19.342,7.258]
[1693874870043,8.062,19.349,19.342,7.258]
[1693874877967,55.0,19.348,19.342,30.709]
[1693874878461,63.062,19.349,19.342,30.709]
[1693874878864,63.062,19.349,19.342,7.258]
[1693874879954,63.062,19.349,19.341,7.258]
[1693874880150,63.062,19.349,19.338,23.456]
[1693874880355,63.062,19.349,19.339,27.259]
[1693874881755,63.062,19.349,19.337,23.456]
[1693874881756,63.062,19.349,19.337,7.26]
[1693874881957,63.062,19.349,19.33,119.132]
[1693874881958,20.0,19.348,19.331,23.463]
[1693874882271,34.12,19.343,19.332,7.262]
[1693874882655,55.0,19.342,19.332,7.262]
[1693874882869,8.066,19.339,19.332,7.262]
[1693874883356,55.0,19.338,19.332,7.262]
[1693874883556,63.067,19.338,19.332,7.262]
[1693874884671,55.0,19.338,19.332,7.262]
[1693874884868,55.0,19.339,19.332,7.262]
[1693874885169,8.066,19.339,19.332,7.262]
[1693874885366,55.0,19.338,19.332,7.262]
[1693874885553,63.067,19.338,19.332,7.262]
[1693874886759,8.067,19.338,19.332,7.262]
[1693874887772,8.067,19.338,19.326,15.23578076]
[1693874887970,8.067,19.338,19.327,20.0]
[1693874888366,26.058,19.342,19.327,20.0]
[1693874888569,8.066,19.339,19.327,20.0]
[1693874890257,8.066,19.339,19.323,40.65770423]
[1693874890258,34.127,19.339,19.323,40.65770423]
[1693874890462,34.127,19.339,19.32,58.91012501]
[1693874890463,75.0,19.338,19.32,58.91012501]
[1693874890663,8.069,19.333,19.32,68.78403308]
[1693874890881,8.068,19.335,19.32,68.78403308]
[1693874891175,8.068,19.335,19.321,25.63180707]
[1693874891969,118.0778,19.338,19.321,25.63180707]
[1693874892174,8.067,19.336,19.321,0.63180707]
[1693874892475,2.65893544,19.335,19.32,84.26645293]
[1693874892675,8.068,19.334,19.32,84.26645293]
[1693874892877,2.66361592,19.333,19.32,84.26645293]
[1693874893571,4.14534301,19.337,19.32,84.26645293]
[1693874893767,8.068,19.334,19.32,84.26645293]
[1693874897866,197.6865,19.344,19.32,84.26645293]
[1693874898062,8.068,19.336,19.32,109.89826]
[1693874899893,8.068,19.336,19.321,55.0]
[1693874900387,8.068,19.336,19.32,109.89826]
[1693874900572,2.55184893,19.335,19.32,109.89826]
[1693874900884,8.069,19.334,19.32,109.89826]
[1693874901863,8.069,19.334,19.321,55.0]
[1693874902785,56.884,19.338,19.321,55.0]
[1693874902989,8.068,19.334,19.321,55.0]
[1693874904269,8.068,19.334,19.323,7.265]
[1693874904485,8.068,19.334,19.324,55.0]
[1693874904691,8.068,19.334,19.325,7.265]
[1693874905286,8.068,19.335,19.325,7.265]
[1693874906487,8.068,19.335,19.324,62.265]
[1693874906688,8.068,19.335,19.324,55.0]
[1693874907197,8.068,19.335,19.324,62.265]
[1693874907378,8.068,19.335,19.324,55.0]
[1693874910098,8.068,19.335,19.324,62.265]
[1693874910474,8.068,19.335,19.324,55.0]
[1693874911290,8.068,19.335,19.323,49.5495318]
[1693874911489,26.48,19.35,19.323,49.5495318]
[1693874911490,102.858,19.348,19.33,26.48]
[1693874911696,3.41440017,19.334,19.33,75.57680707]
[1693874911987,8.066,19.34,19.331,7.262]
[1693874912181,8.066,19.34,19.33,59.37480707]
[1693874914093,8.065,19.341,19.33,59.37480707]
[1693874917688,8.065,19.341,19.33,33.743]
[1693874917895,8.065,19.341,19.33,59.37480707]
[1693874918284,8.065,19.341,19.33,33.743]
[1693874919472,8.065,19.341,19.33,49.51394105]
[1693874933710,26.48,19.34,19.31,26.48]
[1693874934002,91.076,19.325,19.311,7.27]
[1693874934400,4.94461036,19.324,19.311,7.27]
[1693874934710,8.074,19.321,19.311,30.759]
[1693874934999,8.074,19.321,19.304,92.774]
[1693874935000,8.074,19.321,19.309,7.27]
[1693874935392,8.074,19.321,19.31,26.48]
[1693874935688,8.074,19.321,19.312,7.27]
[1693874945597,8.073,19.322,19.312,30.757]
[1693874945794,2.71287706,19.321,19.312,7.27]
[1693874945997,8.075,19.319,19.312,7.27]
[1693874947505,8.073,19.322,19.312,7.27]
[1693874947815,2.62982506,19.321,19.312,7.27]
[1693874948195,10.70382506,19.321,19.312,7.27]
[1693874948395,8.074,19.321,19.312,7.27]
[1693874949910,26.082,19.324,19.312,7.27]
[1693874950211,3.5539408,19.323,19.312,7.27]
[1693874951593,8.074,19.321,19.312,7.27]
[1693874968325,98.5983,19.327,19.313,55.0]
[1693874968526,8.072,19.325,19.317,7.268]
[1693874970120,2.77666143,19.324,19.317,7.268]
[1693874970514,8.072,19.325,19.317,7.268]
[1693874980032,26.077,19.328,19.317,7.268]
[1693874980033,8.072,19.326,19.317,7.268]
[1693874980217,2.79916551,19.325,19.317,7.268]
[1693874980526,8.073,19.323,19.317,7.268]
[1693874981417,8.072,19.325,19.317,7.268]
[1693874986919,2.64364751,19.324,19.317,7.268]
[1693874987126,8.073,19.322,19.317,7.268]
[1693874991430,8.069,19.334,19.318,75.0]
[1693874991635,8.069,19.334,19.322,81.974]
[1693874991835,3.38672524,19.333,19.322,81.974]
[1693874992437,8.068,19.335,19.322,81.974]
[1693874992626,2.73456986,19.334,19.322,81.974]
[1693874993235,10.80256986,19.334,19.322,81.974]
[1693874993536,10.80256986,19.334,19.322,7.266]
[1693874993727,8.068,19.334,19.322,7.266]
[1693874993924,2.57310821,19.333,19.322,7.266]
[1693874994128,8.069,19.332,19.322,7.266]
[1693874997339,8.069,19.332,19.321,7.266]
[1693874997539,8.069,19.332,19.32,26.48]
[1693874997846,34.148,19.327,19.317,41.87894463]
[1693874998028,34.148,19.327,19.314,103.33218218]
[1693874998029,34.148,19.327,19.318,20.0]
[1693874998229,2.68345046,19.326,19.318,20.0]
[1693874998435,8.073,19.324,19.318,20.0]
[1693874998636,8.073,19.324,19.315,27.268]
[1693874999227,8.073,19.324,19.316,55.0]
[1693874999427,8.073,19.324,19.317,20.0]
[1693875000741,8.073,19.324,19.314,7.269]
[1693875001040,8.073,19.324,19.312,56.60403726]
[1693875001343,3.02890605,19.323,19.312,15.84627329]
[1693875001645,34.161,19.32,19.312,15.84627329]
[1693875002628,34.161,19.32,19.31,26.48]
[1693875004333,34.161,19.32,19.31,41.95360248]
[1693875007249,34.161,19.32,19.31,15.47360248]
[1693875007445,34.161,19.32,19.307,7.271]
[1693875007646,34.161,19.32,19.308,20.0]
[1693875008236,34.161,19.32,19.308,27.271]
[1693875012843,8.074,19.32,19.308,50.763]
[1693875013050,8.074,19.32,19.31,26.48]
[1693875013353,8.074,19.32,19.312,7.269]
[1693875013552,8.074,19.32,19.311,7.27]
[1693875013846,8.074,19.32,19.31,33.75]
[1693875014053,8.074,19.32,19.31,26.48]
[1693875014554,8.074,19.32,19.31,33.75]
[1693875017152,26.083,19.323,19.31,33.75]
[1693875017762,8.074,19.32,19.31,33.75]
[1693875018142,8.074,19.321,19.31,33.75]
[1693875018464,8.073,19.323,19.31,33.75]
[1693875018666,3.00034555,19.322,19.31,33.75]
[1693875018867,11.07334555,19.322,19.31,33.75]
[1693875019072,8.073,19.322,19.311,55.0]
[1693875019974,8.073,19.322,19.312,7.269]
[1693875020267,8.073,19.322,19.31,26.48]
[1693875020567,8.075,19.319,19.31,33.75]
[1693875021356,8.074,19.32,19.31,33.75]
[1693875021555,94.118,19.324,19.31,33.75]
[1693875021765,2.64827609,19.321,19.31,33.75]
[1693875021964,8.073,19.322,19.31,33.75]
[1693875026567,2.67488305,19.321,19.31,33.75]
[1693875026768,8.074,19.32,19.31,33.75]
[1693875026969,8.074,19.321,19.31,33.75]
[1693875032379,34.159,19.321,19.31,33.75]
[1693875032683,34.159,19.321,19.31,26.48]
[1693875032882,34.159,19.321,19.31,33.75]
[1693875043989,8.074,19.321,19.31,33.75]
[1693875044168,94.118,19.324,19.311,55.0]
[1693875044372,8.072,19.325,19.314,30.753]
[1693875044671,3.73550055,19.325,19.314,30.753]
[1693875045469,11.80750055,19.325,19.314,30.753]
[1693875048376,11.80750055,19.325,19.314,7.268]
[1693875051270,11.80750055,19.325,19.312,7.269]
[1693875051475,11.80750055,19.325,19.313,55.0]
[1693875052392,11.80750055,19.325,19.313,62.269]
[1693875052992,11.80750055,19.325,19.313,7.269]
[1693875056295,11.80750055,19.325,19.313,30.755]
[1693875056598,11.80750055,19.325,19.314,55.0]
[1693875056796,8.072,19.325,19.317,7.268]
[1693875057292,2.48200371,19.324,19.317,7.268]
[1693875058584,8.072,19.325,19.317,7.268]
[1693875058783,2.60099275,19.324,19.317,7.268]
[1693875058984,8.072,19.325,19.317,7.268]
[1693875061306,8.072,19.325,19.315,7.268]
[1693875061595,8.072,19.325,19.316,62.268]
[1693875065389,2.52579426,19.324,19.316,62.268]
[1693875065691,8.073,19.324,19.316,62.268]
[1693875067801,8.073,19.324,19.316,55.0]
[1693875068594,34.154,19.324,19.314,7.269]
[1693875068897,8.074,19.321,19.314,7.269]
[1693875070405,8.074,19.321,19.312,7.269]
[1693875070598,8.074,19.321,19.31,26.48]
[1693875070998,8.074,19.321,19.31,33.75]
[1693875071709,8.074,19.321,19.31,26.48]
[1693875075112,8.074,19.322,19.313,7.269]
[1693875075617,8.074,19.322,19.311,55.0]
[1693875076112,2.47355117,19.321,19.311,55.0]
[1693875076313,8.075,19.319,19.311,55.0]
[1693875077313,8.075,19.319,19.311,62.27]
[1693875078406,8.075,19.319,19.311,7.27]
[1693875078606,8.075,19.319,19.31,33.75]
[1693875079011,8.075,19.319,19.31,26.48]
[1693875085808,8.075,19.319,19.31,33.75]
[1693875086308,8.075,19.319,19.31,26.48]
[1693875090007,8.075,19.319,19.31,33.75]
[1693875094624,8.075,19.319,19.31,26.48]
[1693875095120,8.075,19.319,19.31,33.75]
[1693875095306,8.074,19.32,19.31,33.75]
[1693875103126,8.074,19.32,19.31,7.27]
[1693875107330,8.074,19.32,19.308,7.271]
[1693875107534,34.554,19.32,19.295,391.5]
[1693875107733,34.554,19.32,19.295,450.1309284]
[1693875108037,34.554,19.32,19.295,58.6309284]
[1693875108239,34.554,19.32,19.3,67.1632298]
[1693875108637,34.554,19.32,19.303,7.273]
[1693875110437,55.0,19.319,19.3,106.28822306]
[1693875110743,34.172,19.314,19.302,7.273]
[1693875111627,34.172,19.314,19.3,26.48]
[1693875112141,34.172,19.314,19.302,7.273]
[1693875112443,34.172,19.314,19.301,7.274]
[1693875113238,34.172,19.314,19.3,33.754]
[1693875113439,55.0,19.313,19.3,33.754]
[1693875113644,8.079,19.31,19.3,33.754]
[1693875115339,8.079,19.31,19.3,26.48]
[1693875117133,8.079,19.31,19.3,33.754]
[1693875117746,8.079,19.31,19.3,26.48]
[1693875117929,8.079,19.31,19.298,56.30657688]
[1693875118129,8.079,19.31,19.298,15.85914033]
[1693875118334,8.079,19.31,19.298,23.13414033]
[1693875118731,8.079,19.31,19.3,26.48]
[1693875118944,8.078,19.311,19.3,26.48]
[1693875119144,8.078,19.311,19.302,7.273]
[1693875119848,8.078,19.311,19.3,26.48]
[1693875119849,34.177,19.311,19.3,26.48]
[1693875120547,8.078,19.311,19.3,33.754]
[1693875122936,26.096,19.313,19.3,33.754]
[1693875122937,8.077,19.313,19.301,55.0]
[1693875123241,27.05775516,19.32,19.301,55.0]
[1693875123242,4.30778334,19.321,19.304,7.272]
[1693875123444,8.075,19.318,19.308,7.271]
[1693875123749,8.075,19.318,19.302,74.787]
[1693875124348,8.075,19.318,19.305,7.272]
[1693875126137,8.075,19.318,19.301,23.5]
[1693875126440,55.0,19.317,19.3,26.48]
[1693875126639,8.077,19.312,19.302,23.499]
[1693875127549,8.077,19.312,19.3,49.982]
[1693875127853,8.077,19.313,19.302,30.773]
[1693875128056,8.077,19.314,19.302,30.773]
[1693875132050,8.077,19.314,19.303,55.0]
[1693875132356,8.077,19.314,19.303,7.273]
[1693875132550,8.077,19.314,19.303,62.273]
[1693875133749,8.077,19.314,19.304,55.0]
[1693875134145,8.077,19.314,19.304,62.273]
[1693875137248,65.03,19.314,19.3,26.48]
[1693875137445,65.03,19.314,19.302,7.273]
[1693875137647,65.03,19.314,19.303,55.0]
[1693875137845,65.03,19.314,19.303,62.273]
[1693875138048,65.03,19.314,19.303,7.273]
[1693875140758,65.03,19.314,19.302,7.273]
[1693875141162,65.03,19.314,19.3,26.48]
[1693875141364,55.0,19.313,19.3,26.48]
[1693875141547,91.146,19.31,19.3,26.48]
[1693875142358,91.146,19.31,19.295,40.84101501]
[1693875142660,91.146,19.31,19.296,20.0]
[1693875142844,91.146,19.31,19.298,7.275]
[1693875147556,34.18,19.31,19.298,7.275]
[1693875149777,8.079,19.31,19.298,7.275]
[1693875151464,97.491,19.314,19.3,26.48]
[1693875151655,105.568,19.314,19.304,30.77]
[1693875152155,8.077,19.314,19.304,30.77]
[1693875154854,8.077,19.314,19.303,7.273]
[1693875155055,83.047,19.315,19.3,49.982]
[1693875155056,34.178,19.31,19.302,7.273]
[1693875158865,8.078,19.31,19.302,7.273]
[1693875168478,97.1387,19.318,19.302,58.563]
[1693875168679,8.077,19.314,19.302,58.563]
[1693875169178,8.077,19.314,19.302,7.273]
[1693875173383,8.077,19.314,19.302,58.563]
[1693875174984,8.076,19.315,19.302,58.563]
[1693875185277,8.076,19.315,19.302,7.273]
[1693875189797,8.076,19.315,19.303,55.0]
[1693875190094,8.076,19.315,19.306,7.272]
[1693875190287,8.076,19.315,19.306,30.767]
[1693875191796,8.076,19.315,19.306,7.272]
[1693875196592,8.076,19.315,19.303,23.498]
[1693875196896,8.076,19.315,19.305,7.272]
[1693875203004,8.076,19.315,19.3,68.84269429]
[1693875203200,111.104,19.315,19.3,68.84269429]
[1693875203394,111.104,19.315,19.3,26.48]
[1693875203600,111.104,19.315,19.301,7.274]
[1693875207004,8.076,19.315,19.301,7.274]
[1693875209010,8.076,19.315,19.3,49.981]
[1693875209011,97.1387,19.318,19.306,82.044]
[1693875209412,26.088,19.32,19.306,82.044]
[1693875209714,8.075,19.317,19.306,30.766]
[1693875211397,8.075,19.317,19.31,7.27]
[1693875212411,8.075,19.317,19.308,7.271]
[1693875217218,8.075,19.317,19.307,7.271]
[1693875225412,8.075,19.317,19.306,7.272]
[1693875240237,8.075,19.317,19.307,55.0]
[1693875240530,8.075,19.317,19.305,23.495]
[1693875240735,8.075,19.317,19.308,7.271]
[1693875245543,26.09,19.318,19.308,7.271]
[1693875245739,8.075,19.317,19.308,7.271]
[1693875250846,8.075,19.317,19.307,7.271]
[1693875251250,8.075,19.317,19.306,7.272]
[1693875251544,111.093,19.317,19.3,68.46032106]
[1693875251845,91.137,19.312,19.3,26.48]
[1693875252827,91.137,19.312,19.3,33.754]
[1693875258859,34.176,19.312,19.3,33.754]
[1693875259946,34.176,19.312,19.3,7.274]
[1693875260951,8.079,19.31,19.3,7.274]
[1693875272059,63.078,19.311,19.3,7.274]
[1693875275757,26.095,19.314,19.3,7.274]
[1693875275957,91.5001,19.315,19.3,126.551]
[1693875276165,91.5001,19.315,19.301,55.0]
[1693875276358,91.5001,19.315,19.305,82.049]
[1693875276763,8.075,19.317,19.305,82.049]
[1693875277263,55.0,19.316,19.305,82.049]
[1693875277449,63.076,19.316,19.305,82.049]
[1693875292863,8.076,19.316,19.305,82.049]
[1693875294669,8.076,19.316,19.309,7.271]
[1693875295460,8.076,19.316,19.308,7.271]
[1693875316689,8.075,19.317,19.308,7.271]
[1693875316891,8.075,19.318,19.308,7.271]
[1693875322779,8.075,19.319,19.313,7.269]
[1693875323003,4.94461036,19.322,19.313,7.269]
[1693875323191,4.94461036,19.323,19.313,7.269]
[1693875323386,4.94461036,19.323,19.314,55.0]
[1693875323579,13.01761036,19.323,19.316,7.268]
[1693875323784,13.01761036,19.323,19.31,26.48]
[1693875324105,13.01761036,19.323,19.311,55.0]
[1693875324303,39.09961036,19.323,19.314,7.269]
[1693875324893,13.01761036,19.323,19.314,7.269]
[1693875325494,39.09961036,19.323,19.314,7.269]
[1693875327897,13.01761036,19.323,19.314,7.269]
[1693875329500,13.01761036,19.323,19.312,7.269]
[1693875330001,55.0,19.322,19.31,33.75]
[1693875330198,34.164,19.319,19.31,7.27]
[1693875330391,4.94461036,19.321,19.31,7.27]
[1693875330595,4.94461036,19.324,19.31,33.75]
[1693875330790,13.01761036,19.324,19.31,126.499]
[1693875331189,39.09861036,19.324,19.31,126.499]
[1693875331388,39.09861036,19.324,19.31,33.75]
[1693875331703,39.09861036,19.324,19.311,55.0]
[1693875331913,39.09861036,19.324,19.314,7.269]
[1693875332984,55.0,19.323,19.311,23.488]
[1693875333190,8.074,19.321,19.313,7.269]
[1693875334004,4.94461036,19.321,19.313,7.269]
[1693875334200,13.01861036,19.321,19.313,7.269]
[1693875334392,13.01861036,19.321,19.314,55.0]
[1693875334595,8.074,19.321,19.316,7.268]
[1693875336003,8.074,19.321,19.315,7.268]
[1693875339310,4.94461036,19.322,19.315,7.268]
[1693875339607,8.074,19.321,19.315,7.268]
[1693875341594,4.94461036,19.323,19.315,7.268]
[1693875341595,8.073,19.322,19.315,7.268]
[1693875341793,4.94461036,19.321,19.316,75.0]
[1693875342000,26.48,19.34,19.317,81.997]
[1693875342001,8.069,19.333,19.317,81.997]
[1693875342306,4.94461036,19.332,19.32,26.48]
[1693875342502,4.94461036,19.335,19.323,81.97]
[1693875342690,344.59985841,19.335,19.323,81.97]
[1693875342891,344.59985841,19.335,19.324,55.0]
[1693875343104,344.59985841,19.335,19.327,7.264]
[1693875343300,336.53185841,19.335,19.327,7.264]
[1693875343505,13.01261036,19.335,19.327,7.264]
[1693875345706,13.01261036,19.335,19.324,55.0]
[1693875346612,13.01261036,19.335,19.325,7.265]
[1693875349516,4.94461036,19.335,19.325,7.265]
[1693875351713,13.01261036,19.335,19.325,7.265]
[1693875352810,4.94461036,19.335,19.325,7.265]
[1693875353017,4.94461036,19.335,19.326,55.0]
[1693875353206,4.94461036,19.335,19.328,7.263]
[1693875353514,4.94461036,19.336,19.328,7.263]
[1693875354115,13.01161036,19.336,19.328,7.263]
[1693875365528,4.94461036,19.336,19.326,55.0]
[1693875365723,8.067,19.336,19.328,7.263]
[1693875365925,4.94461036,19.335,19.328,7.263]
[1693875366122,13.01261036,19.335,19.328,7.263]
[1693875368530,4.94461036,19.335,19.328,7.263]
[1693875368733,24.94461036,19.338,19.328,7.263]